bitfinex/quotes_SOLUSD_20240613
["timestamp","ask_amount","ask_price","bid_price","bid_amount"]
[1718300153136,7.7,147.67,147.63,2.5061]
[1718300153448,7.7,147.67,147.62,2.5064]
[1718300153449,7.7,147.66,147.62,2.5064]
[1718300153753,7.7,147.66,147.63,2.5062]
[1718300154042,7.7,147.66,147.64,2.506]
[1718300154447,7.7,147.66,147.63,2.5061]
[1718300155031,7.7,147.66,147.64,2.506]
[1718300155440,7.7,147.66,147.63,2.5062]
[1718300155946,7.7,147.66,147.62,2.5063]
[1718300156247,7.7,147.66,147.6,23.3953]
[1718300156248,7.7,147.65,147.6,23.3953]
[1718300156435,7.7,147.65,147.62,2.5064]
[1718300157939,7.7,147.64,147.62,2.5064]
[1718300158525,7.7,147.64,147.63,2.5062]
[1718300158725,2.5056,147.67,147.63,2.5062]
[1718300158726,7.7,147.65,147.63,2.5062]
[1718300159526,2.5054,147.68,147.64,2.506]
[1718300159722,7.7,147.66,147.64,2.506]
[1718300160933,7.7,147.65,147.6,20.7086]
[1718300161253,7.7,147.65,147.61,2.5065]
[1718300161747,7.7,147.65,147.62,2.5064]
[1718300162756,7.7,147.65,147.6,28.229]
[1718300162757,10.2061,147.64,147.6,2.5066]
[1718300163230,7.7,147.64,147.61,2.5065]
[1718300163830,7.7,147.65,147.62,2.5064]
[1718300164523,7.7,147.64,147.62,2.5064]
[1718300164724,7.7,147.63,147.57,5.0145]
[1718300164941,7.7,147.62,147.59,2.5068]
[1718300165256,7.7,147.63,147.61,2.5065]
[1718300165753,2.506,147.65,147.61,2.5065]
[1718300165754,10.2061,147.64,147.61,2.5065]
[1718300165923,7.7,147.63,147.61,2.5065]
[1718300166129,7.7,147.63,147.6,2.5066]
[1718300167045,2.5064,147.62,147.58,2.507]
[1718300167255,10.2064,147.62,147.58,2.507]
[1718300167426,7.7,147.6,147.52,23.388]
[1718300167757,7.7,147.56,147.52,15.688]
[1718300167941,7.7,147.56,147.52,2.508]
[1718300168465,7.7,147.55,147.51,2.5082]
[1718300168949,7.7,147.55,147.52,2.5081]
[1718300169256,7.7,147.55,147.53,2.5078]
[1718300169549,3.017,147.59,147.51,20.2413]
[1718300169757,7.7,147.57,147.52,12.5404]
[1718300169937,7.7,147.57,147.55,2.5075]
[1718300170138,7.7,147.57,147.54,2.5077]
[1718300170449,7.7,147.56,147.53,2.5079]
[1718300170836,7.7,147.54,147.48,15.688]
[1718300171028,7.7,147.54,147.52,2.5079]
[1718300171228,5.014,147.59,147.51,2.5082]
[1718300171229,7.7,147.55,147.51,2.5082]
[1718300171831,7.7,147.53,147.5,2.5083]
[1718300172247,7.7,147.53,147.51,2.5082]
[1718300172439,7.7,147.54,147.48,28.4054]
[1718300172640,7.7,147.53,147.51,2.5082]
[1718300172868,7.7,147.54,147.51,2.5082]
[1718300173155,7.7,147.54,147.48,35.9317]
[1718300173336,7.7,147.54,147.52,2.508]
[1718300174572,7.7,147.54,147.51,2.5082]
[1718300175038,7.7,147.54,147.5,2.5083]
[1718300175434,7.7,147.53,147.49,2.5085]
[1718300175738,5.3547,147.57,147.44,26.6463]
[1718300175739,10.0305,147.55,147.44,26.6463]
[1718300175931,10.0305,147.55,147.46,2.509]
[1718300175932,10.2084,147.5,147.46,2.509]
[1718300176132,7.7,147.5,147.46,2.509]
[1718300176538,7.7,147.5,147.47,2.5089]
[1718300176743,7.7,147.5,147.45,2.5092]
[1718300176744,7.7,147.48,147.45,2.5092]
[1718300176954,7.7,147.47,147.44,2.5094]
[1718300177155,7.7,147.47,147.45,2.5093]
[1718300177327,0.34,147.51,147.46,2.5091]
[1718300177328,7.7,147.48,147.46,2.5091]
[1718300177751,7.7,147.49,147.47,2.5089]
[1718300178239,7.7,147.49,147.44,12.5473]
[1718300178458,7.7,147.48,147.45,2.5091]
[1718300178630,2.5085,147.5,147.46,2.509]
[1718300178832,45.34,147.51,147.46,2.509]
[1718300179056,2.5084,147.5,147.46,2.509]
[1718300180266,45.34,147.51,147.47,2.5089]
[1718300180267,47.8483,147.51,147.47,2.5089]
[1718300180463,2.8483,147.51,147.47,2.5089]
[1718300180850,2.5084,147.5,147.46,2.509]
[1718300181758,2.5084,147.5,147.45,2.5092]
[1718300181953,5.3567,147.51,147.44,2.5094]
[1718300182131,5.3567,147.51,147.45,2.5092]
[1718300182132,2.5087,147.49,147.45,2.5092]
[1718300182649,2.5087,147.49,147.42,12.5489]
[1718300182650,2.5085,147.5,147.46,2.5091]
[1718300182849,2.8484,147.51,147.46,2.509]
[1718300183274,2.5084,147.51,147.47,2.5089]
[1718300183466,2.5085,147.5,147.46,2.5091]
[1718300185070,15.4084,147.56,147.48,15.8054]
[1718300185236,253.1,147.58,147.5,5.0168]
[1718300185441,2.5073,147.57,147.53,2.5079]
[1718300186067,2.5074,147.56,147.52,2.508]
[1718300186264,2.5073,147.57,147.51,5.0165]
[1718300186478,253.1,147.58,147.52,10.4933027]
[1718300186687,253.1,147.58,147.54,12.5388]
[1718300186843,253.1,147.58,147.57,2.5072]
[1718300187043,2.5066,147.61,147.57,2.5072]
[1718300187266,27.8568,147.64,147.57,2.5072]
[1718300187267,2.5065,147.62,147.57,2.5072]
[1718300187493,2.5065,147.62,147.58,2.507]
[1718300189242,22.8445,147.64,147.55,7.5227]
[1718300189468,2.5063,147.63,147.59,2.5069]
[1718300189698,2.5061,147.64,147.6,2.5067]
[1718300190180,2.5061,147.64,147.56,27.5223]
[1718300190181,2.5059,147.65,147.61,2.5065]
[1718300190551,253.1,147.67,147.56,20.0]
[1718300190906,253.1,147.67,147.64,2.506]
[1718300191180,255.6056,147.67,147.63,2.5061]
[1718300191363,253.1,147.67,147.64,2.506]
[1718300191571,253.1,147.67,147.61,12.5328]
[1718300191572,253.1,147.67,147.62,12.5319]
[1718300191761,253.1,147.67,147.65,2.5058]
[1718300194985,253.1,147.67,147.66,2.5057]
[1718300195488,2.5047,147.72,147.68,2.5053]
[1718300195658,2.5046,147.73,147.69,2.5052]
[1718300196461,2.5047,147.72,147.68,2.5053]
[1718300199071,52.3576,147.75,147.69,2.5052]
[1718300199072,2.5046,147.73,147.69,2.5052]
[1718300199484,2.505,147.71,147.67,2.5054]
[1718300201396,45.0,147.74,147.63,26.0172]
[1718300201564,0.17,147.72,147.67,2.5055]
[1718300201767,7.5153,147.7,147.62,19.1018]
[1718300202112,2.5063,147.63,147.58,15.5827]
[1718300202294,2.5065,147.62,147.58,2.507]
[1718300202497,2.5065,147.62,147.55,14.0433]
[1718300202498,2.5066,147.61,147.57,2.5071]
[1718300202684,45.51,147.64,147.58,2.5069]
[1718300202889,2.5064,147.63,147.59,2.5069]
[1718300203111,2.5068,147.6,147.56,2.5073]
[1718300203326,2.5066,147.61,147.56,2.5073]
[1718300203618,2.5066,147.61,147.57,2.5072]
[1718300203826,45.0,147.62,147.55,6.5206]
[1718300204029,2.5063,147.63,147.58,2.5069]
[1718300204308,2.6758,147.66,147.62,2.5064]
[1718300204510,47.6758,147.66,147.61,2.5065]
[1718300205035,45.17,147.66,147.62,2.5063]
[1718300205334,2.5061,147.64,147.6,2.5066]
[1718300205715,47.5058,147.66,147.61,2.5066]
[1718300206230,45.0,147.66,147.6,2.5067]
[1718300206398,2.5061,147.64,147.59,2.5069]
[1718300206602,2.5063,147.63,147.59,2.5069]
[1718300207114,2.5061,147.64,147.6,2.5067]
[1718300207698,2.6758,147.66,147.55,6.5206]
[1718300207903,2.5058,147.66,147.62,2.5063]
[1718300208210,16.349,147.71,147.57,0.17]
[1718300208409,2.5051,147.7,147.66,2.5057]
[1718300208822,5.0097,147.72,147.65,5.0117]
[1718300208823,2.5048,147.72,147.65,5.0117]
[1718300209004,650.1008,147.75,147.68,2.5052]
[1718300209005,657.6135,147.75,147.68,2.5052]
[1718300209210,2.5047,147.72,147.68,2.5052]
[1718300209509,662.6221,147.75,147.68,2.5052]
[1718300209725,662.6221,147.75,147.69,2.5052]
[1718300209901,5.0079,147.77,147.68,12.5268]
[1718300210104,5.0079,147.77,147.7,2.5049]
[1718300210343,5.0079,147.77,147.68,5.0106]
[1718300210514,26.2708,147.78,147.69,2.5051]
[1718300210515,2.5046,147.73,147.69,2.5051]
[1718300210930,17.5283,147.76,147.7,2.505]
[1718300210931,2.5044,147.74,147.7,2.505]
[1718300211616,2.5045,147.73,147.69,2.5051]
[1718300212213,45.17,147.75,147.67,5.011]
[1718300212214,2.5044,147.74,147.7,2.505]
[1718300213042,47.6742,147.75,147.71,2.5048]
[1718300213427,2.5044,147.74,147.71,2.5048]
[1718300213626,7.5137,147.73,147.66,2.5056]
[1718300213839,15.0275,147.73,147.65,20.0]
[1718300214167,2.5053,147.69,147.65,2.5058]
[1718300215642,5.0101,147.7,147.62,22.9299]
[1718300215868,2.5055,147.68,147.64,2.506]
[1718300216013,2.5055,147.67,147.63,2.5061]
[1718300216217,2.5055,147.67,147.64,2.506]
[1718300217038,45.51,147.69,147.64,2.506]
[1718300217039,2.5055,147.68,147.64,2.506]
[1718300217340,45.51,147.69,147.63,2.5062]
[1718300217341,2.5056,147.67,147.63,2.5062]
[1718300217742,2.5058,147.66,147.6,5.0132]
[1718300218046,2.5058,147.66,147.62,2.5063]
[1718300218626,0.51,147.69,147.65,2.5058]
[1718300218831,2.5054,147.68,147.62,12.5319]
[1718300219029,2.5054,147.68,147.63,2.5061]
[1718300219030,2.8456,147.67,147.63,2.5061]
[1718300219250,2.6756,147.67,147.63,2.5061]
[1718300219428,47.6755,147.68,147.64,2.506]
[1718300219630,0.17,147.68,147.65,2.5059]
[1718300219835,0.34,147.68,147.65,2.5059]
[1718300220035,0.34,147.68,147.64,2.5059]
[1718300220036,2.8454,147.68,147.64,2.5059]
[1718300220260,0.34,147.68,147.65,2.5058]
[1718300220436,2.8454,147.68,147.64,2.506]
[1718300220642,2.8454,147.68,147.61,5.013]
[1718300220643,2.5055,147.67,147.63,2.5061]
[1718300221450,31.8083,147.71,147.59,6.0694]
[1718300221451,6.1204,147.71,147.59,6.0694]
[1718300221656,7.5142,147.72,147.63,5.0123]
[1718300221825,2.5053,147.69,147.65,2.5057]
[1718300222021,5.0099,147.71,147.65,2.5057]
[1718300222246,7.5142,147.72,147.63,5.0123]
[1718300222247,2.5051,147.7,147.66,2.5057]
[1718300222429,2.5049,147.71,147.65,5.0117]
[1718300222631,2.5047,147.72,147.68,2.5053]
[1718300223156,45.0,147.73,147.64,12.5301]
[1718300223464,2.5049,147.71,147.65,5.0117]
[1718300223635,2.5048,147.72,147.68,2.5053]
[1718300224757,2.5048,147.72,147.66,5.0115]
[1718300224758,45.51,147.73,147.69,2.5051]
[1718300225064,2.5046,147.73,147.69,2.5051]
[1718300225243,35.1671,147.75,147.69,2.5051]
[1718300225560,2.5046,147.73,147.69,2.5051]
[1718300226340,5.1792,147.73,147.65,16.3349]
[1718300226652,2.505,147.71,147.67,2.5055]
[1718300227657,2.5048,147.72,147.68,2.5053]
[1718300227968,2.5042,147.75,147.71,2.5048]
[1718300228344,15.0228,147.78,147.7,5.01]
[1718300228345,2.5041,147.76,147.7,5.01]
[1718300228543,2.5042,147.75,147.69,7.5156]
[1718300228851,2.5044,147.74,147.7,2.5049]
[1718300229047,12.5195,147.77,147.71,2.5048]
[1718300229048,2.5043,147.75,147.71,2.5048]
[1718300230351,22.9841,147.79,147.66,6.1973]
[1718300230352,27.9914,147.79,147.66,6.1973]
[1718300230556,2.504,147.76,147.72,2.5045]
[1718300231560,2.5042,147.75,147.72,2.5045]
[1718300231941,2.5042,147.75,147.71,2.5048]
[1718300233566,2.5042,147.75,147.72,2.5047]
[1718300233757,2.5041,147.76,147.72,2.5047]
[1718300234074,2.5041,147.76,147.69,7.5156]
[1718300234075,47.674,147.77,147.73,2.5044]
[1718300234285,2.674,147.77,147.73,2.5044]
[1718300234949,258.1067,147.81,147.67,43.1]
[1718300235172,5.0068,147.8,147.74,2.5043]
[1718300235342,2.5039,147.77,147.74,2.5043]
[1718300235539,2.5038,147.78,147.74,2.5043]
[1718300235964,10.014,147.8,147.72,2.5046]
[1718300236171,2.5041,147.76,147.73,2.5045]
[1718300236697,2.5042,147.76,147.72,2.5047]
[1718300236969,2.5042,147.75,147.72,2.5047]
[1718300237266,2.5042,147.75,147.71,2.5048]
[1718300237451,2.5042,147.75,147.7,5.0099]
[1718300237652,2.5041,147.76,147.72,2.5047]
[1718300238771,47.5039,147.77,147.73,2.5045]
[1718300239097,2.5039,147.77,147.73,2.5045]
[1718300240182,23.1,147.8,147.72,15.4707]
[1718300240357,12.5165,147.81,147.75,2.5041]
[1718300240558,2.5036,147.79,147.73,12.5225]
[1718300240758,2.5037,147.78,147.75,2.5041]
[1718300240968,5.0065,147.81,147.76,2.504]
[1718300241268,2.5039,147.77,147.73,2.5044]
[1718300241471,2.5039,147.77,147.74,2.5043]
[1718300241654,15.02,147.81,147.75,2.5041]
[1718300241856,2.5037,147.78,147.75,2.5041]
[1718300242252,2.5036,147.79,147.76,2.504]
[1718300242565,2.5034,147.8,147.76,2.504]
[1718300242755,2.5035,147.79,147.76,2.504]
[1718300243862,2.5035,147.79,147.75,2.5041]
[1718300246079,2.504,147.77,147.73,2.5045]
[1718300246379,2.5033,147.81,147.72,22.0364]
[1718300246556,13.3513041,147.83,147.75,15.0248]
[1718300246751,2.5034,147.8,147.76,2.5039]
[1718300247281,3.3396041,147.83,147.8,2.5033]
[1718300248165,3.3396041,147.83,147.79,2.5034]
[1718300248769,3.3397041,147.83,147.79,2.5034]
[1718300249586,3.3397041,147.83,147.77,15.023]
[1718300249587,2.503,147.82,147.78,2.5036]
[1718300250975,3.3397041,147.83,147.8,2.5033]
[1718300252373,3.3397041,147.83,147.76,7.5121]
[1718300252374,0.8368041,147.83,147.76,22.5357]
[1718300252783,2.5032,147.81,147.78,2.5036]
[1718300253380,2.5032,147.81,147.77,2.5037]
[1718300253581,2.5032,147.81,147.76,5.0077]
[1718300253582,2.5035,147.8,147.74,17.5303]
[1718300253771,2.5035,147.8,147.75,5.0084]
[1718300253977,2.5035,147.8,147.77,2.5038]
[1718300254894,1.0068041,147.83,147.78,2.5036]
[1718300255099,2.5031,147.82,147.78,2.5036]
[1718300255400,0.8368041,147.83,147.73,43.1]
[1718300255573,0.8368041,147.83,147.82,2.503]
[1718300255997,0.8368041,147.83,147.81,2.5031]
[1718300256293,0.8368041,147.83,147.8,5.0067]
[1718300256294,0.8368041,147.83,147.8,2.5032]
[1718300256594,0.8368041,147.83,147.81,2.5031]
[1718300256780,0.8368041,147.83,147.82,2.503]
[1718300259899,0.8368041,147.83,147.81,2.5031]
[1718300260270,0.8368041,147.83,147.82,2.503]
[1718300261489,0.8368041,147.83,147.81,2.5031]
[1718300261885,0.8368041,147.83,147.82,2.503]
[1718300262087,0.8368041,147.83,147.82,7.509]
[1718300263210,0.8368041,147.83,147.82,25.0302]
[1718300266511,0.8368041,147.83,147.82,45.0302]
[1718300266683,0.8368041,147.83,147.82,45.2002]
[1718300268190,0.8368041,147.83,147.82,45.0302]
[1718300268499,0.8368041,147.83,147.82,45.2002]
[1718300270105,0.8368041,147.83,147.82,25.0302]
[1718300270411,0.8368041,147.83,147.82,35.0181]
[1718300270600,0.8368041,147.83,147.82,22.503]
[1718300270806,0.8368041,147.83,147.81,2.5032]
[1718300271013,0.8368041,147.83,147.79,15.0207]
[1718300271185,0.8368041,147.83,147.78,15.695]
[1718300271522,0.8368041,147.83,147.74,64.04816024]
[1718300271523,3.3397041,147.83,147.79,2.5035]
[1718300271818,0.8368041,147.83,147.78,17.5257]
[1718300272002,0.8368041,147.83,147.82,2.503]
[1718300273308,0.8368041,147.83,147.82,7.509]
[1718300273510,0.8368041,147.83,147.82,2.503]
[1718300274019,0.8368041,147.83,147.82,7.509]
[1718300275249,0.8368041,147.83,147.82,27.509]
[1718300275412,0.8368041,147.83,147.82,2.503]
[1718300276941,0.8368041,147.83,147.82,7.509]
[1718300277818,0.8368041,147.83,147.82,2.503]
[1718300278947,0.8368041,147.83,147.82,15.199]
[1718300280541,0.8368041,147.83,147.82,52.7202]
[1718300280742,0.8368041,147.83,147.82,52.8902]
[1718300281417,0.8368041,147.83,147.82,52.7202]
[1718300281616,0.8368041,147.83,147.82,52.8902]
[1718300282814,0.8368041,147.83,147.82,53.0602]
[1718300283034,10.0058,147.92,147.88,2.5019]
[1718300283035,2.5014,147.92,147.88,2.5019]
[1718300283217,2.5014,147.92,147.89,2.5017]
[1718300284022,2.5012,147.93,147.88,5.004]
[1718300284228,10.1912,147.93,147.88,12.694]
[1718300284415,10.1912,147.93,147.89,2.5017]
[1718300284620,2.5012,147.93,147.89,2.5017]
[1718300285241,2.5011,147.94,147.91,2.5014]
[1718300285541,2.5011,147.94,147.87,23.1]
[1718300285542,2.5007,147.96,147.92,2.5012]
[1718300286247,2.5007,147.96,147.93,2.5011]
[1718300286742,0.8368041,147.97,147.91,12.5073]
[1718300286926,2.5006,147.96,147.93,2.5011]
[1718300288045,3.3374041,147.97,147.93,2.5011]
[1718300288244,0.8368041,147.97,147.93,2.5011]
[1718300288463,0.8368041,147.97,147.88,23.21]
[1718300288641,0.8368041,147.97,147.96,7.5019]
[1718300289735,0.8368041,147.97,147.96,15.0039]
[1718300291553,0.8368041,147.97,147.96,90.5166]
[1718300291731,0.8368041,147.97,147.96,90.6866]
[1718300293062,2.4992,148.05,148.01,2.4997]
[1718300293351,16.3749,148.06,148.02,2.4995]
[1718300293352,18.8739,148.06,148.02,2.4995]
[1718300293546,16.3749,148.06,148.03,2.4994]
[1718300294145,18.8739,148.06,148.03,2.4994]
[1718300295029,18.8739,148.06,148.0,22.4996]
[1718300295254,16.3749,148.06,148.03,2.4994]
[1718300295455,6.0006,148.07,147.97,0.17]
[1718300295667,6.0006,148.07,148.04,2.4991]
[1718300295833,8.4994,148.07,148.03,2.4994]
[1718300296153,2.499,148.06,148.02,2.4995]
[1718300296451,8.4994,148.07,148.03,2.4994]
[1718300296664,2.499,148.06,148.02,2.4996]
[1718300296846,2.4996,148.03,147.99,2.5]
[1718300297048,2.4994,148.04,148.0,2.4999]
[1718300297343,2.4994,148.04,147.98,5.0005]
[1718300297552,2.4995,148.03,147.98,5.0005]
[1718300297857,2.4995,148.03,147.99,2.5001]
[1718300298554,0.34,148.02,147.94,10.004]
[1718300298732,2.4999,148.01,147.97,2.5004]
[1718300298932,2.5,148.0,147.96,2.5005]
[1718300299149,2.5003,147.98,147.92,15.0077]
[1718300299455,2.5003,147.98,147.94,2.5008]
[1718300299659,2.5005,147.97,147.93,2.501]
[1718300299965,18.5128,147.97,147.93,2.5011]
[1718300300140,2.5007,147.96,147.93,2.5011]
[1718300300538,18.5127,147.97,147.93,2.5011]
[1718300302156,18.5127,147.97,147.89,7.5051]
[1718300302157,3.0107,147.96,147.92,2.5012]
[1718300302371,48.0107,147.96,147.92,2.5012]
[1718300302754,45.51,147.96,147.89,2.5017]
[1718300302945,2.5011,147.94,147.9,2.5016]
[1718300303262,18.6827,147.97,147.9,7.505]
[1718300303474,16.0122,147.97,147.94,2.5009]
[1718300303760,2.5007,147.96,147.9,10.0063]
[1718300303956,2.5007,147.96,147.92,2.5012]
[1718300304165,2.5007,147.96,147.9,15.0096]
[1718300304374,18.8527,147.97,147.93,2.5011]
[1718300304554,18.5127,147.97,147.93,2.5011]
[1718300304761,21.0132,147.97,147.91,2.5015]
[1718300304944,2.5009,147.95,147.91,2.5015]
[1718300305144,2.5009,147.95,147.89,5.0035]
[1718300305145,2.5009,147.95,147.92,2.5013]
[1718300305368,0.17,147.96,147.93,2.501]
[1718300305870,0.17,147.96,147.9,12.5081]
[1718300305871,18.5127,147.97,147.92,5.0023]
[1718300306044,16.0122,147.97,147.94,2.5008]
[1718300306365,6.3547,148.0,147.86,0.17]
[1718300306555,8.8547,148.0,147.86,20.68]
[1718300306759,8.8547,148.0,147.89,0.17]
[1718300306760,6.3547,148.0,147.89,0.17]
[1718300306967,8.8547,148.0,147.97,2.5004]
[1718300307467,8.8547,148.0,147.94,2.5008]
[1718300307468,6.3547,148.0,147.94,2.5008]
[1718300307671,2.5004,147.98,147.94,2.5008]
[1718300307872,2.5006,147.96,147.93,2.5011]
[1718300308082,2.5006,147.96,147.92,2.5012]
[1718300308363,2.5006,147.96,147.93,2.5011]
[1718300308540,2.5005,147.97,147.93,2.5011]
[1718300308744,2.5006,147.96,147.93,2.5011]
[1718300309160,45.0,147.98,147.91,5.0029]
[1718300309454,2.6704,147.98,147.94,2.5008]
[1718300310477,2.5005,147.97,147.94,2.5008]
[1718300310857,2.6704,147.98,147.94,2.5008]
[1718300311694,2.5005,147.97,147.94,2.5008]
[1718300311847,2.5005,147.97,147.93,2.5011]
[1718300312469,0.17,147.98,147.95,2.5007]
[1718300312854,48.0102,147.99,147.95,2.5007]
[1718300313253,7.68,147.97,147.95,2.5007]
[1718300313651,6.5247,148.0,147.93,5.0023]
[1718300313652,6.3547,148.0,147.94,5.0019]
[1718300313856,14.0347,148.0,147.95,5.0016]
[1718300314157,7.68,148.0,147.98,2.5003]
[1718300314363,18.2374,148.01,147.96,5.0012]
[1718300314364,15.7375,148.01,147.96,5.0012]
[1718300314561,15.7375,148.01,147.98,2.5003]
[1718300315067,18.2373,148.01,147.98,2.5003]
[1718300315370,6.2892,148.03,147.98,5.0005]
[1718300315574,6.2892,148.03,148.01,2.4997]
[1718300315876,2.4995,148.03,147.96,7.5019]
[1718300316175,2.5,148.0,147.97,2.5004]
[1718300316383,2.4999,148.01,147.97,2.5004]
[1718300316978,2.4998,148.01,147.95,5.0016]
[1718300317348,2.5,148.0,147.93,7.5035]
[1718300317549,2.5002,147.99,147.96,2.5006]
[1718300317981,4.9994,148.02,147.93,12.5057]
[1718300317982,2.5,148.0,147.97,2.5004]
[1718300318153,2.4999,148.01,147.97,2.5004]
[1718300318354,2.5,148.0,147.97,2.5004]
[1718300319076,2.4999,148.01,147.97,2.5004]
[1718300320268,47.6697,148.02,147.98,2.5002]
[1718300320569,2.4999,148.01,147.97,2.5004]
[1718300320962,2.4997,148.02,147.99,2.5001]
[1718300321161,2.6697,148.02,147.98,2.5002]
[1718300321371,2.4998,148.01,147.98,2.5002]
[1718300321556,2.4998,148.01,147.97,2.5004]
[1718300321877,2.4998,148.01,147.98,2.5002]
[1718300322273,2.6697,148.02,147.98,2.5002]
[1718300322665,2.6697,148.02,147.99,2.5001]
[1718300322867,2.6697,148.02,147.96,5.0012]
[1718300323078,2.4998,148.01,147.98,2.5002]
[1718300326759,2.4998,148.01,147.92,10.0047]
[1718300326760,4.9996,148.01,147.92,10.0047]
[1718300326987,2.5002,147.99,147.95,2.5007]
[1718300327206,0.34,148.0,147.91,16.1207]
[1718300327363,10.0013,147.99,147.94,2.5009]
[1718300327569,2.5005,147.97,147.94,2.501]
[1718300327874,5.5102,148.0,147.91,28.628]
[1718300327875,2.5002,147.99,147.93,12.5056]
[1718300328076,2.5002,147.99,147.96,2.5006]
[1718300329099,8.7519,148.01,147.97,2.5004]
[1718300330697,2.5,148.0,147.97,2.5004]
[1718300330872,2.5,148.0,147.96,2.5005]
[1718300331273,2.5001,147.99,147.96,2.5005]
[1718300331688,2.5,148.0,147.96,2.5005]
[1718300331887,2.5,148.0,147.97,2.5004]
[1718300332098,253.1,148.06,147.92,0.17]
[1718300332276,58.1097,148.05,147.99,2.5001]
[1718300332476,2.4996,148.03,147.99,2.5001]
[1718300333097,2.4996,148.02,147.99,2.5001]
[1718300333402,2.4996,148.02,147.98,2.5002]
[1718300333778,2.4996,148.02,147.99,2.5001]
[1718300334396,2.4995,148.03,148.0,2.4999]
[1718300334980,2.4995,148.03,147.99,2.5]
[1718300335187,2.4996,148.02,147.99,2.5]
[1718300335581,2.4996,148.02,147.97,15.0028]
[1718300335582,2.4996,148.02,147.98,2.5002]
[1718300335791,2.4996,148.02,147.99,2.5001]
[1718300336489,2.4996,148.02,147.98,2.5002]
[1718300336687,2.4996,148.02,147.99,2.5001]
[1718300336887,10.1696,148.02,147.99,2.5001]
[1718300337402,10.1696,148.02,147.98,2.5002]
[1718300338180,10.1696,148.02,147.99,2.5001]
[1718300338413,10.1696,148.02,147.98,2.5002]
[1718300338713,10.1696,148.02,147.99,2.5001]
[1718300338911,7.67,148.02,147.98,2.5002]
[1718300339080,7.67,148.0,147.97,2.5004]
[1718300339286,2.4998,148.01,147.98,2.5002]
[1718300339487,7.67,148.0,147.98,2.5002]
[1718300339915,2.4998,148.01,147.98,2.5002]
[1718300339916,7.67,148.01,147.98,2.5002]
[1718300340099,7.67,148.01,147.99,2.5001]
[1718300341002,10.1698,148.01,147.98,2.5002]
[1718300341202,4.999,148.03,147.97,2.5004]
[1718300341203,10.17,148.0,147.97,2.5004]
[1718300341413,10.17,148.0,147.96,2.5005]
[1718300341926,7.67,148.0,147.98,2.5002]
[1718300342094,7.67,148.0,147.99,2.5001]
[1718300342291,7.67,148.01,147.99,2.5001]
[1718300343331,2.4997,148.02,147.99,2.5001]
[1718300343617,7.67,148.01,147.99,2.5001]
[1718300344189,7.67,148.0,147.91,16.1207]
[1718300344394,7.67,148.0,147.95,2.5007]
[1718300344395,7.67,147.97,147.95,2.5007]
[1718300344621,7.67,147.97,147.94,2.5008]
[1718300344801,7.67,147.97,147.95,2.5008]
[1718300344995,7.67,147.98,147.96,2.5006]
[1718300345398,7.67,147.99,147.96,2.5005]
[1718300345596,54.9976,148.04,147.98,2.5002]
[1718300345815,7.67,148.0,147.98,2.5002]
[1718300347530,0.68,148.03,147.96,17.5044]
[1718300347695,2.4997,148.02,147.99,2.5001]